[Event "Titled Tuesday Blitz May 16 Early 2023"]
[White "Chakravarthi Reddy, M"]
[Black "Sowul, Bartosz"]
[WhiteFideId "25009532"]
[BlackFideId "1137590"]
[WhiteElo "2201"]
[BlackElo "2188"]
[Result "0-1"]
[Round "06"]
[TimeControl "180+2"]
[Date "2023.05.16"]
[WhiteClock "0:00:27"]
[BlackClock "0:00:29"]

1. e4 {[%clk 0:03:00]}  c5 {[%clk 0:02:59]} 2. Nf3 {[%clk 0:03:01]}  d6 {[%clk 0:03:00]} 3. d4 {[%clk 0:03:00]}  cxd4 {[%clk 0:03:01]} 4. Nxd4 {[%clk 0:03:01]}  Nf6 {[%clk 0:03:01]} 5. Nc3 {[%clk 0:03:01]}  Nc6 {[%clk 0:03:01]} 6. Bc4 {[%clk 0:02:57]}  e6 {[%clk 0:02:58]} 7. Nxc6 {[%clk 0:02:52]}  bxc6 {[%clk 0:02:57]} 8. Be3 {[%clk 0:02:52]}  Be7 {[%clk 0:02:47]} 9. Qe2 {[%clk 0:02:50]}  O-O {[%clk 0:02:39]} 10. g4 {[%clk 0:02:50]}  d5 {[%clk 0:02:38]} 11. O-O-O {[%clk 0:02:41]}  Qa5 {[%clk 0:02:21]} 12. g5 {[%clk 0:02:21]}  dxc4 {[%clk 0:02:10]} 13. gxf6 {[%clk 0:02:21]}  Bxf6 {[%clk 0:02:11]} 14. Bd4 {[%clk 0:02:17]}  e5 {[%clk 0:01:57]} 15. Be3 {[%clk 0:02:08]}  Be6 {[%clk 0:01:57]} 16. Bd2 {[%clk 0:01:43]}  Qb6 {[%clk 0:01:51]} 17. Kb1 {[%clk 0:01:37]}  Rfb8 {[%clk 0:01:42]} 18. Bc1 {[%clk 0:01:34]}  Bg5 {[%clk 0:01:19]} 19. Na4 {[%clk 0:01:27]}  Qb4 {[%clk 0:01:17]} 20. c3 {[%clk 0:01:19]}  Qe7 {[%clk 0:01:06]} 21. Bxg5 {[%clk 0:01:16]}  Qxg5 {[%clk 0:01:07]} 22. Nc5 {[%clk 0:01:10]}  Bg4 {[%clk 0:00:42]} 23. f3 {[%clk 0:01:08]}  Qe7 {[%clk 0:00:42]} 24. Na6 {[%clk 0:00:50]}  Rb6 {[%clk 0:00:36]} 25. fxg4 {[%clk 0:00:50]}  Rxa6 {[%clk 0:00:36]} 26. Qxc4 {[%clk 0:00:50]}  Rb6 {[%clk 0:00:37]} 27. Rd2 {[%clk 0:00:37]}  Rab8 {[%clk 0:00:36]} 28. Rhd1 {[%clk 0:00:37]}  g6 {[%clk 0:00:31]} 29. Rd7 {[%clk 0:00:36]}  Rxb2+ {[%clk 0:00:30]} 30. Ka1 {[%clk 0:00:31]}  Qxd7 {[%clk 0:00:30]} 31. Rxd7 {[%clk 0:00:27]}  Rb1# {[%clk 0:00:29]} 0-1


[Site "https://www.chess.com"]

[Event "Titled Tuesday Blitz May 16 Early 2023"]
[White "Chernov, Mikhail"]
[Black "Winkels, Marcel"]
[WhiteFideId "24143170"]
[BlackFideId "1003887"]
[WhiteElo "2113"]
[BlackElo "1900"]
[Result "1-0"]
[Round "06"]
[TimeControl "180+2"]
[Date "2023.05.16"]
[WhiteClock "0:01:48"]
[BlackClock "0:00:34"]

1. d4 {[%clk 0:02:48]}  Nf6 {[%clk 0:02:59]} 2. Nc3 {[%clk 0:02:43]}  d5 {[%clk 0:02:58]} 3. Bf4 {[%clk 0:02:42]}  c5 {[%clk 0:02:59]} 4. e3 {[%clk 0:02:33]}  Nc6 {[%clk 0:02:55]} 5. Nb5 {[%clk 0:02:30]}  Qa5+ {[%clk 0:02:22]} 6. c3 {[%clk 0:02:29]}  Kd8 {[%clk 0:02:19]} 7. Bc7+ {[%clk 0:02:26]}  Qxc7 {[%clk 0:02:18]} 8. Nxc7 {[%clk 0:02:27]}  Kxc7 {[%clk 0:02:19]} 9. dxc5 {[%clk 0:02:20]}  e5 {[%clk 0:02:16]} 10. b4 {[%clk 0:02:19]}  Be6 {[%clk 0:02:10]} 11. Nf3 {[%clk 0:02:18]}  Rd8 {[%clk 0:02:01]} 12. Bb5 {[%clk 0:02:17]}  Ne4 {[%clk 0:01:52]} 13. Bxc6 {[%clk 0:02:13]}  bxc6 {[%clk 0:01:48]} 14. Qa4 {[%clk 0:02:13]}  Kb8 {[%clk 0:01:19]} 15. Nxe5 {[%clk 0:02:11]}  Nxc3 {[%clk 0:01:14]} 16. Nxc6+ {[%clk 0:02:05]}  Kc7 {[%clk 0:01:12]} 17. Qa5+ {[%clk 0:02:05]}  Kxc6 {[%clk 0:01:11]} 18. Qxd8 {[%clk 0:02:06]}  g6 {[%clk 0:01:11]} 19. O-O {[%clk 0:01:58]}  Bg7 {[%clk 0:01:10]} 20. Qe7 {[%clk 0:01:52]}  Rc8 {[%clk 0:00:52]} 21. Qxa7 {[%clk 0:01:48]}  Ne2+ {[%clk 0:00:38]} 22. Kh1 {[%clk 0:01:48]}  Bxa1 {[%clk 0:00:38]} 23. Rxa1 {[%clk 0:01:47]}  Rc7 {[%clk 0:00:39]} 24. Qa6+ {[%clk 0:01:47]}  Kd7 {[%clk 0:00:34]} 25. Qxe2 {[%clk 0:01:48]} 1-0


[Site "https://www.chess.com"]

[Event "Titled Tuesday Blitz May 16 Early 2023"]
[White "Jaivardhan Raj"]
[Black "Begunov, Konstantin"]
[WhiteFideId "25744437"]
[BlackFideId "4118510"]
[WhiteElo "1772"]
[BlackElo "2050"]
[Result "0-1"]
[Round "06"]
[TimeControl "180+2"]
[Date "2023.05.16"]
[WhiteClock "0:00:07"]
[BlackClock "0:00:11"]

1. e4 {[%clk 0:03:00]}  c5 {[%clk 0:02:55]} 2. Nf3 {[%clk 0:02:58]}  d6 {[%clk 0:02:56]} 3. d4 {[%clk 0:02:58]}  cxd4 {[%clk 0:02:57]} 4. Qxd4 {[%clk 0:02:58]}  a6 {[%clk 0:02:56]} 5. c4 {[%clk 0:02:57]}  Nc6 {[%clk 0:02:56]} 6. Qe3 {[%clk 0:02:56]}  Bg4 {[%clk 0:02:55]} 7. Nc3 {[%clk 0:02:56]}  Rc8 {[%clk 0:02:56]} 8. Be2 {[%clk 0:02:56]}  Bxf3 {[%clk 0:02:49]} 9. gxf3 {[%clk 0:02:53]}  g6 {[%clk 0:02:40]} 10. Nd5 {[%clk 0:02:43]}  Bg7 {[%clk 0:02:32]} 11. Rb1 {[%clk 0:02:28]}  Nd4 {[%clk 0:02:21]} 12. Qd2 {[%clk 0:02:06]}  e6 {[%clk 0:02:05]} 13. Ne3 {[%clk 0:01:56]}  Qf6 {[%clk 0:01:44]} 14. Qd1 {[%clk 0:01:37]}  Ne7 {[%clk 0:01:24]} 15. Ng4 {[%clk 0:01:33]}  Qh4 {[%clk 0:01:17]} 16. Bf4 {[%clk 0:01:18]}  d5 {[%clk 0:00:58]} 17. Bg3 {[%clk 0:01:09]}  Qg5 {[%clk 0:00:57]} 18. h4 {[%clk 0:01:01]}  Qh5 {[%clk 0:00:55]} 19. e5 {[%clk 0:00:30]}  Nxe2 {[%clk 0:00:43]} 20. Qxe2 {[%clk 0:00:28]}  dxc4 {[%clk 0:00:43]} 21. Bf4 {[%clk 0:00:25]}  Qf5 {[%clk 0:00:37]} 22. Rd1 {[%clk 0:00:10]}  Qxf4 {[%clk 0:00:15]} 23. Qe3 {[%clk 0:00:09]}  Qxe3+ {[%clk 0:00:14]} 24. fxe3 {[%clk 0:00:08]}  Nd5 {[%clk 0:00:14]} 25. e4 {[%clk 0:00:08]}  Nb4 {[%clk 0:00:13]} 26. h5 {[%clk 0:00:08]}  Nxa2 {[%clk 0:00:10]} 27. h6 {[%clk 0:00:08]}  O-O {[%clk 0:00:06]} 28. hxg7 {[%clk 0:00:07]}  Kxg7 {[%clk 0:00:07]} 29. Rh6 {[%clk 0:00:06]}  Nb4 {[%clk 0:00:06]} 30. Ke2 {[%clk 0:00:06]}  Rh8 {[%clk 0:00:04]} 31. Rdh1 {[%clk 0:00:07]}  Nd3 {[%clk 0:00:02]} 32. Nf6 {[%clk 0:00:07]}  Nxe5 {[%clk 0:00:02]} 33. Rxh7+ {[%clk 0:00:08]}  Rxh7 {[%clk 0:00:02]} 34. Rxh7+ {[%clk 0:00:08]}  Kxf6 {[%clk 0:00:02]} 35. f4 {[%clk 0:00:07]}  Nd3 {[%clk 0:00:03]} 36. e5+ {[%clk 0:00:07]}  Ke7 {[%clk 0:00:04]} 37. Rh4 {[%clk 0:00:07]}  Nxb2 {[%clk 0:00:05]} 38. Rh2 {[%clk 0:00:07]}  c3 {[%clk 0:00:06]} 39. Ke1 {[%clk 0:00:07]}  c2 {[%clk 0:00:06]} 40. Rxc2 {[%clk 0:00:06]}  Rxc2 {[%clk 0:00:07]} 41. Kf1 {[%clk 0:00:06]}  Rh2 {[%clk 0:00:07]} 42. Kg1 {[%clk 0:00:07]}  Rd2 {[%clk 0:00:08]} 43. Kf1 {[%clk 0:00:06]}  Nc4 {[%clk 0:00:09]} 44. Ke1 {[%clk 0:00:07]}  a5 {[%clk 0:00:10]} 45. Kf1 {[%clk 0:00:08]}  a4 {[%clk 0:00:10]} 46. Ke1 {[%clk 0:00:07]}  a3 {[%clk 0:00:11]} 0-1


[Site "https://www.chess.com"]

[Event "Titled Tuesday Blitz May 16 Early 2023"]
[White "Brown, Raehanna"]
[Black "liwadas82"]
[WhiteFideId "7402740"]
[WhiteElo "1655"]
[BlackElo "2455"]
[Result "0-1"]
[Round "06"]
[TimeControl "180+2"]
[Date "2023.05.16"]
[WhiteClock "0:00:00"]
[BlackClock "0:00:33"]

1. c4 {[%clk 0:03:00]}  e5 {[%clk 0:02:59]} 2. Nc3 {[%clk 0:02:59]}  d6 {[%clk 0:02:59]} 3. g3 {[%clk 0:02:57]}  f5 {[%clk 0:02:59]} 4. Bg2 {[%clk 0:02:57]}  Nf6 {[%clk 0:03:00]} 5. d3 {[%clk 0:02:58]}  Be7 {[%clk 0:03:01]} 6. e3 {[%clk 0:02:58]}  O-O {[%clk 0:03:00]} 7. Nge2 {[%clk 0:02:58]}  a5 {[%clk 0:02:57]} 8. O-O {[%clk 0:02:58]}  Na6 {[%clk 0:02:57]} 9. b3 {[%clk 0:02:57]}  c6 {[%clk 0:02:57]} 10. Bb2 {[%clk 0:02:56]}  Qe8 {[%clk 0:02:57]} 11. Qd2 {[%clk 0:02:54]}  Qh5 {[%clk 0:02:55]} 12. f4 {[%clk 0:02:50]}  Nc5 {[%clk 0:02:48]} 13. Ba3 {[%clk 0:02:13]}  a4 {[%clk 0:02:32]} 14. Bxc5 {[%clk 0:02:03]}  dxc5 {[%clk 0:02:32]} 15. fxe5 {[%clk 0:02:03]}  Ng4 {[%clk 0:02:32]} 16. h3 {[%clk 0:02:01]}  Nxe5 {[%clk 0:02:31]} 17. Nf4 {[%clk 0:02:02]}  Qf7 {[%clk 0:02:29]} 18. d4 {[%clk 0:01:57]}  cxd4 {[%clk 0:02:26]} 19. exd4 {[%clk 0:01:57]}  Ng6 {[%clk 0:02:24]} 20. Nxa4 {[%clk 0:01:41]}  Nxf4 {[%clk 0:02:13]} 21. gxf4 {[%clk 0:01:35]}  Rd8 {[%clk 0:02:09]} 22. Rad1 {[%clk 0:01:10]}  Bf6 {[%clk 0:02:01]} 23. Qe3 {[%clk 0:00:49]}  Re8 {[%clk 0:01:52]} 24. Qf2 {[%clk 0:00:42]}  Rxa4 {[%clk 0:01:44]} 25. bxa4 {[%clk 0:00:40]}  Qxc4 {[%clk 0:01:45]} 26. d5 {[%clk 0:00:40]}  Qxa4 {[%clk 0:01:37]} 27. dxc6 {[%clk 0:00:37]}  bxc6 {[%clk 0:01:38]} 28. Kh1 {[%clk 0:00:30]}  Kh8 {[%clk 0:01:30]} 29. Rc1 {[%clk 0:00:17]}  Bd7 {[%clk 0:01:21]} 30. Qc2 {[%clk 0:00:14]}  Qa3 {[%clk 0:01:03]} 31. Rfd1 {[%clk 0:00:08]}  Rd8 {[%clk 0:00:54]} 32. Rxd7 {[%clk 0:00:03]}  Rxd7 {[%clk 0:00:51]} 33. Qxc6 {[%clk 0:00:04]}  Rd8 {[%clk 0:00:47]} 34. Re1 {[%clk 0:00:04]}  Qf8 {[%clk 0:00:35]} 35. a4 {[%clk 0:00:00]}  Rc8 {[%clk 0:00:33]} 0-1


[Site "https://www.chess.com"]

[Event "Titled Tuesday Blitz May 16 Early 2023"]
[White "Srebrnic, Marko"]
[Black "dDobravcan"]
[WhiteFideId "14603616"]
[WhiteElo "2341"]
[BlackElo "2141"]
[Result "1-0"]
[Round "06"]
[TimeControl "180+2"]
[Date "2023.05.16"]
[WhiteClock "0:00:10"]
[BlackClock "0:00:44"]

1. e4 {[%clk 0:03:00]}  d6 {[%clk 0:02:59]} 2. d4 {[%clk 0:02:57]}  Nf6 {[%clk 0:02:59]} 3. Nc3 {[%clk 0:02:57]}  c6 {[%clk 0:02:58]} 4. f4 {[%clk 0:02:57]}  Qa5 {[%clk 0:02:57]} 5. Bd3 {[%clk 0:02:55]}  e5 {[%clk 0:02:55]} 6. dxe5 {[%clk 0:02:54]}  dxe5 {[%clk 0:02:53]} 7. fxe5 {[%clk 0:02:55]}  Ng4 {[%clk 0:02:52]} 8. Nf3 {[%clk 0:02:54]}  Nd7 {[%clk 0:02:48]} 9. O-O {[%clk 0:02:43]}  Qc5+ {[%clk 0:02:40]} 10. Kh1 {[%clk 0:02:43]}  Nf2+ {[%clk 0:02:38]} 11. Rxf2 {[%clk 0:02:43]}  Qxf2 {[%clk 0:02:37]} 12. Bf4 {[%clk 0:02:37]}  b5 {[%clk 0:02:28]} 13. Ne2 {[%clk 0:02:15]}  Bc5 {[%clk 0:02:13]} 14. Ng3 {[%clk 0:01:50]}  Be3 {[%clk 0:01:57]} 15. Bxe3 {[%clk 0:01:45]}  Qxe3 {[%clk 0:01:55]} 16. Nf5 {[%clk 0:01:45]}  Qc5 {[%clk 0:01:51]} 17. Nxg7+ {[%clk 0:01:40]}  Kf8 {[%clk 0:01:48]} 18. Nh5 {[%clk 0:01:08]}  Nxe5 {[%clk 0:01:47]} 19. Nxe5 {[%clk 0:01:07]}  Qxe5 {[%clk 0:01:46]} 20. Qf3 {[%clk 0:01:07]}  Be6 {[%clk 0:01:33]} 21. Rf1 {[%clk 0:01:05]}  Rg8 {[%clk 0:01:30]} 22. Nf6 {[%clk 0:01:05]}  Rg7 {[%clk 0:01:28]} 23. h3 {[%clk 0:00:40]}  Rd8 {[%clk 0:01:26]} 24. g4 {[%clk 0:00:37]}  a6 {[%clk 0:01:24]} 25. b4 {[%clk 0:00:35]}  c5 {[%clk 0:01:23]} 26. bxc5 {[%clk 0:00:35]}  Qxc5 {[%clk 0:01:22]} 27. Nh5 {[%clk 0:00:31]}  Rg6 {[%clk 0:01:15]} 28. Nf6 {[%clk 0:00:30]}  Qe5 {[%clk 0:01:12]} 29. Nh5 {[%clk 0:00:24]}  Rd7 {[%clk 0:01:09]} 30. Qe3 {[%clk 0:00:23]}  Qd4 {[%clk 0:01:05]} 31. Qf4 {[%clk 0:00:22]}  h6 {[%clk 0:00:56]} 32. Qb8+ {[%clk 0:00:20]}  Rd8 {[%clk 0:00:56]} 33. Qc7 {[%clk 0:00:18]}  Qe3 {[%clk 0:00:55]} 34. Kg2 {[%clk 0:00:15]}  Re8 {[%clk 0:00:53]} 35. Qd6+ {[%clk 0:00:11]}  Re7 {[%clk 0:00:50]} 36. Qd8+ {[%clk 0:00:10]}  Re8 {[%clk 0:00:50]} 37. Qd6+ {[%clk 0:00:11]}  Re7 {[%clk 0:00:50]} 38. Nf6 {[%clk 0:00:11]}  Qg5 {[%clk 0:00:47]} 39. Qd8+ {[%clk 0:00:10]}  Kg7 {[%clk 0:00:44]} 40. Qg8# {[%clk 0:00:10]} 1-0


[Site "https://www.chess.com"]

[Event "Titled Tuesday Blitz May 16 Early 2023"]
[White "Zavortink, Matt"]
[Black "Torres Dominguez, David"]
[WhiteFideId "2034263"]
[BlackFideId "2220857"]
[WhiteElo "2449"]
[BlackElo "1999"]
[Result "1-0"]
[Round "06"]
[TimeControl "180+2"]
[Date "2023.05.16"]
[WhiteClock "0:00:12"]
[BlackClock "0:00:00"]

1. Nf3 {[%clk 0:03:00]}  d5 {[%clk 0:02:54]} 2. g3 {[%clk 0:03:01]}  Nc6 {[%clk 0:02:54]} 3. d4 {[%clk 0:03:00]}  Bg4 {[%clk 0:02:53]} 4. Bg2 {[%clk 0:02:59]}  Qd7 {[%clk 0:02:53]} 5. h3 {[%clk 0:02:59]}  Bf5 {[%clk 0:02:52]} 6. c4 {[%clk 0:02:56]}  e6 {[%clk 0:02:51]} 7. Nc3 {[%clk 0:02:54]}  Bb4 {[%clk 0:02:50]} 8. O-O {[%clk 0:02:49]}  Bxc3 {[%clk 0:02:49]} 9. bxc3 {[%clk 0:02:48]}  Nf6 {[%clk 0:02:43]} 10. Nh4 {[%clk 0:02:17]}  Bg6 {[%clk 0:02:10]} 11. Nxg6 {[%clk 0:02:07]}  hxg6 {[%clk 0:02:10]} 12. Rb1 {[%clk 0:02:03]}  O-O {[%clk 0:01:55]} 13. cxd5 {[%clk 0:02:00]}  Nxd5 {[%clk 0:01:51]} 14. Qc2 {[%clk 0:01:54]}  Nb6 {[%clk 0:01:43]} 15. Rd1 {[%clk 0:01:46]}  Rab8 {[%clk 0:01:33]} 16. e4 {[%clk 0:01:44]}  Na5 {[%clk 0:01:33]} 17. h4 {[%clk 0:01:28]}  Nbc4 {[%clk 0:01:30]} 18. Qe2 {[%clk 0:01:21]}  b5 {[%clk 0:01:12]} 19. h5 {[%clk 0:01:20]}  gxh5 {[%clk 0:00:57]} 20. Qxh5 {[%clk 0:01:19]}  Qe7 {[%clk 0:00:55]} 21. e5 {[%clk 0:01:10]}  f5 {[%clk 0:00:40]} 22. Bf3 {[%clk 0:00:55]}  Qf7 {[%clk 0:00:38]} 23. Qh3 {[%clk 0:00:53]}  g6 {[%clk 0:00:34]} 24. Bh6 {[%clk 0:00:32]}  Rfd8 {[%clk 0:00:32]} 25. Kg2 {[%clk 0:00:32]}  Qh7 {[%clk 0:00:26]} 26. Rh1 {[%clk 0:00:31]}  Kf7 {[%clk 0:00:25]} 27. Rbd1 {[%clk 0:00:26]}  Rh8 {[%clk 0:00:14]} 28. Qh4 {[%clk 0:00:26]}  c6 {[%clk 0:00:13]} 29. Qf6+ {[%clk 0:00:25]}  Ke8 {[%clk 0:00:12]} 30. Qxe6+ {[%clk 0:00:22]}  Qe7 {[%clk 0:00:12]} 31. Bxc6+ {[%clk 0:00:22]}  Nxc6 {[%clk 0:00:07]} 32. Qxc6+ {[%clk 0:00:23]}  Kd8 {[%clk 0:00:07]} 33. Bg5 {[%clk 0:00:21]}  Qxg5 {[%clk 0:00:05]} 34. Rxh8+ {[%clk 0:00:20]}  Ke7 {[%clk 0:00:06]} 35. Qc7+ {[%clk 0:00:19]}  Ke6 {[%clk 0:00:03]} 36. Qc6+ {[%clk 0:00:18]}  Ke7 {[%clk 0:00:03]} 37. Rh7+ {[%clk 0:00:13]}  Kf8 {[%clk 0:00:00]} 38. Qc7 {[%clk 0:00:12]} 1-0


[Site "https://www.chess.com"]

[Event "Titled Tuesday Blitz May 16 Early 2023"]
[White "Sanchez, Robert"]
[Black "Avazkhonov, Alikhon"]
[WhiteFideId "2034360"]
[BlackFideId "14208504"]
[WhiteElo "1873"]
[BlackElo "1739"]
[Result "0-1"]
[Round "06"]
[TimeControl "180+2"]
[Date "2023.05.16"]
[WhiteClock "0:02:09"]
[BlackClock "0:02:10"]

1. e4 {[%clk 0:03:00]}  c5 {[%clk 0:02:50]} 2. d4 {[%clk 0:03:00]}  cxd4 {[%clk 0:02:50]} 3. c3 {[%clk 0:03:00]}  dxc3 {[%clk 0:02:50]} 4. Nxc3 {[%clk 0:03:01]}  Nc6 {[%clk 0:02:47]} 5. Nf3 {[%clk 0:03:02]}  e6 {[%clk 0:02:47]} 6. Bc4 {[%clk 0:03:03]}  Bb4 {[%clk 0:02:47]} 7. O-O {[%clk 0:03:03]}  Nge7 {[%clk 0:02:47]} 8. Nb5 {[%clk 0:03:01]}  d5 {[%clk 0:02:48]} 9. exd5 {[%clk 0:03:00]}  exd5 {[%clk 0:02:44]} 10. Bxd5 {[%clk 0:02:55]}  Nxd5 {[%clk 0:02:45]} 11. Qxd5 {[%clk 0:02:55]}  O-O {[%clk 0:02:45]} 12. Qh5 {[%clk 0:02:48]}  a6 {[%clk 0:02:44]} 13. Nc3 {[%clk 0:02:37]}  h6 {[%clk 0:02:37]} 14. Rd1 {[%clk 0:02:29]}  Qf6 {[%clk 0:02:22]} 15. Nd5 {[%clk 0:02:29]}  Qg6 {[%clk 0:02:22]} 16. Qxg6 {[%clk 0:02:21]}  fxg6 {[%clk 0:02:23]} 17. Nxb4 {[%clk 0:02:21]}  Nxb4 {[%clk 0:02:24]} 18. a3 {[%clk 0:02:11]}  Nc2 {[%clk 0:02:18]} 19. Rb1 {[%clk 0:02:11]}  Bf5 {[%clk 0:02:10]} 20. Nh4 {[%clk 0:02:09]} 0-1


[Site "https://www.chess.com"]

[Event "Titled Tuesday Blitz May 16 Early 2023"]
[White "Maluco_do_Natal_00"]
[Black "Aradhya, Garg"]
[BlackFideId "25006746"]
[WhiteElo "2031"]
[BlackElo "2263"]
[Result "0-1"]
[Round "06"]
[TimeControl "180+2"]
[Date "2023.05.16"]
[WhiteClock "0:00:00"]
[BlackClock "0:02:06"]

1. e4 {[%clk 0:03:00]}  e5 {[%clk 0:02:59]} 2. Nf3 {[%clk 0:02:59]}  Nc6 {[%clk 0:03:00]} 3. Bb5 {[%clk 0:02:59]}  a6 {[%clk 0:02:59]} 4. Ba4 {[%clk 0:02:59]}  Nf6 {[%clk 0:02:59]} 5. O-O {[%clk 0:02:59]}  Be7 {[%clk 0:03:00]} 6. Re1 {[%clk 0:02:59]}  b5 {[%clk 0:02:58]} 7. Bb3 {[%clk 0:02:58]}  O-O {[%clk 0:02:59]} 8. a4 {[%clk 0:02:57]}  b4 {[%clk 0:02:59]} 9. a5 {[%clk 0:02:56]}  d6 {[%clk 0:02:57]} 10. d3 {[%clk 0:02:48]}  Rb8 {[%clk 0:02:57]} 11. Nbd2 {[%clk 0:02:42]}  Be6 {[%clk 0:02:57]} 12. Bc4 {[%clk 0:02:31]}  Qc8 {[%clk 0:02:57]} 13. c3 {[%clk 0:02:03]}  Rd8 {[%clk 0:02:55]} 14. Ng5 {[%clk 0:01:20]}  Bxc4 {[%clk 0:02:53]} 15. Nxc4 {[%clk 0:01:17]}  d5 {[%clk 0:02:53]} 16. exd5 {[%clk 0:01:03]}  Rxd5 {[%clk 0:02:53]} 17. Ne3 {[%clk 0:00:28]}  Rxa5 {[%clk 0:02:46]} 18. Rxa5 {[%clk 0:00:22]}  Nxa5 {[%clk 0:02:47]} 19. Qa4 {[%clk 0:00:16]}  bxc3 {[%clk 0:02:42]} 20. bxc3 {[%clk 0:00:13]}  Nb3 {[%clk 0:02:39]} 21. Ba3 {[%clk 0:00:10]}  Qe8 {[%clk 0:02:36]} 22. Qxe8+ {[%clk 0:00:08]}  Rxe8 {[%clk 0:02:37]} 23. Bxe7 {[%clk 0:00:08]}  Rxe7 {[%clk 0:02:38]} 24. Rb1 {[%clk 0:00:06]}  Nc5 {[%clk 0:02:38]} 25. d4 {[%clk 0:00:05]}  exd4 {[%clk 0:02:37]} 26. cxd4 {[%clk 0:00:05]}  Ncd7 {[%clk 0:02:35]} 27. Ra1 {[%clk 0:00:04]}  Nb8 {[%clk 0:02:33]} 28. Rb1 {[%clk 0:00:04]}  Re8 {[%clk 0:02:34]} 29. Rb7 {[%clk 0:00:02]}  Rc8 {[%clk 0:02:33]} 30. Ra7 {[%clk 0:00:02]}  h6 {[%clk 0:02:27]} 31. Nf3 {[%clk 0:00:02]}  Ne4 {[%clk 0:02:20]} 32. Ne5 {[%clk 0:00:02]}  Nd6 {[%clk 0:02:20]} 33. Nd5 {[%clk 0:00:01]}  Kf8 {[%clk 0:02:08]} 34. Rxc7 {[%clk 0:00:02]}  Rxc7 {[%clk 0:02:06]} 35. Nxc7 {[%clk 0:00:02]}  a5 {[%clk 0:02:06]} 36. Kf1 {[%clk 0:00:02]}  a4 {[%clk 0:02:06]} 37. Ke1 {[%clk 0:00:00]}  a3 {[%clk 0:02:06]} 0-1


[Site "https://www.chess.com"]

[Event "Titled Tuesday Blitz May 16 Early 2023"]
[White "Yurasova, Daria"]
[Black "Mike24147"]
[WhiteFideId "34146919"]
[WhiteElo "2109"]
[BlackElo "2338"]
[Result "1-0"]
[Round "06"]
[TimeControl "180+2"]
[Date "2023.05.16"]
[WhiteClock "0:01:13"]
[BlackClock "0:00:00"]

1. d4 {[%clk 0:03:00]}  d5 {[%clk 0:02:59]} 2. Nf3 {[%clk 0:03:00]}  c6 {[%clk 0:02:59]} 3. Bf4 {[%clk 0:03:00]}  Nf6 {[%clk 0:02:59]} 4. Nbd2 {[%clk 0:03:01]}  Qb6 {[%clk 0:02:59]} 5. Qc1 {[%clk 0:02:56]}  Bf5 {[%clk 0:02:58]} 6. e3 {[%clk 0:02:56]}  e6 {[%clk 0:02:58]} 7. Be2 {[%clk 0:02:53]}  Nbd7 {[%clk 0:02:59]} 8. O-O {[%clk 0:02:54]}  Be7 {[%clk 0:02:59]} 9. c4 {[%clk 0:02:54]}  O-O {[%clk 0:02:55]} 10. c5 {[%clk 0:02:54]}  Qd8 {[%clk 0:02:55]} 11. b4 {[%clk 0:02:54]}  h6 {[%clk 0:02:54]} 12. h3 {[%clk 0:02:54]}  Ne4 {[%clk 0:02:48]} 13. a4 {[%clk 0:02:53]}  Nxd2 {[%clk 0:02:36]} 14. Qxd2 {[%clk 0:02:51]}  Be4 {[%clk 0:02:34]} 15. b5 {[%clk 0:02:50]}  f6 {[%clk 0:02:27]} 16. Bh2 {[%clk 0:02:40]}  e5 {[%clk 0:02:25]} 17. a5 {[%clk 0:02:27]}  g5 {[%clk 0:02:06]} 18. a6 {[%clk 0:02:24]}  bxa6 {[%clk 0:01:58]} 19. bxc6 {[%clk 0:02:24]}  Nb8 {[%clk 0:01:55]} 20. dxe5 {[%clk 0:02:23]}  Nxc6 {[%clk 0:01:53]} 21. Rxa6 {[%clk 0:02:20]}  Qc8 {[%clk 0:01:32]} 22. exf6 {[%clk 0:02:04]}  Rxf6 {[%clk 0:01:18]} 23. Rfa1 {[%clk 0:01:44]}  Bxc5 {[%clk 0:01:07]} 24. Ne5 {[%clk 0:01:29]}  Bb6 {[%clk 0:00:54]} 25. Bg4 {[%clk 0:01:25]}  Qd8 {[%clk 0:00:26]} 26. Nd7 {[%clk 0:01:24]}  Rf7 {[%clk 0:00:19]} 27. Nxb6 {[%clk 0:01:24]}  Nb8 {[%clk 0:00:12]} 28. Nxa8 {[%clk 0:01:20]}  Nxa6 {[%clk 0:00:12]} 29. Be6 {[%clk 0:01:16]}  Qxa8 {[%clk 0:00:06]} 30. Bxf7+ {[%clk 0:01:17]}  Kxf7 {[%clk 0:00:06]} 31. Rxa6 {[%clk 0:01:16]}  Qb7 {[%clk 0:00:07]} 32. Ra1 {[%clk 0:01:16]}  d4 {[%clk 0:00:04]} 33. Qxd4 {[%clk 0:01:14]}  Bxg2 {[%clk 0:00:00]} 34. Rxa7 {[%clk 0:01:13]} 1-0


[Site "https://www.chess.com"]

[Event "Titled Tuesday Blitz May 16 Early 2023"]
[White "Rian, Kapriaga"]
[Black "Balla, Tamas-Kristof"]
[WhiteFideId "7103263"]
[BlackFideId "1208497"]
[WhiteElo "2323"]
[BlackElo "2334"]
[Result "0-1"]
[Round "06"]
[TimeControl "180+2"]
[Date "2023.05.16"]
[WhiteClock "0:00:00"]
[BlackClock "0:00:27"]

1. d4 {[%clk 0:02:55]}  d5 {[%clk 0:02:58]} 2. Bf4 {[%clk 0:02:53]}  Nf6 {[%clk 0:02:54]} 3. e3 {[%clk 0:02:53]}  c5 {[%clk 0:02:55]} 4. c3 {[%clk 0:02:52]}  Qb6 {[%clk 0:02:54]} 5. Qb3 {[%clk 0:02:47]}  c4 {[%clk 0:02:50]} 6. Qxb6 {[%clk 0:02:41]}  axb6 {[%clk 0:02:49]} 7. Nd2 {[%clk 0:02:37]}  b5 {[%clk 0:02:48]} 8. a3 {[%clk 0:02:37]}  Nc6 {[%clk 0:02:47]} 9. Rc1 {[%clk 0:02:33]}  Bf5 {[%clk 0:02:42]} 10. h3 {[%clk 0:02:32]}  e6 {[%clk 0:02:42]} 11. Ngf3 {[%clk 0:02:29]}  h6 {[%clk 0:02:41]} 12. g4 {[%clk 0:02:19]}  Bh7 {[%clk 0:02:40]} 13. Ne5 {[%clk 0:02:19]}  Nxe5 {[%clk 0:02:38]} 14. Bxe5 {[%clk 0:02:18]}  Nd7 {[%clk 0:02:38]} 15. Bg3 {[%clk 0:02:17]}  Nb6 {[%clk 0:02:38]} 16. e4 {[%clk 0:01:17]}  dxe4 {[%clk 0:02:18]} 17. Be2 {[%clk 0:01:14]}  Na4 {[%clk 0:02:13]} 18. b3 {[%clk 0:01:13]}  Bxa3 {[%clk 0:02:01]} 19. bxa4 {[%clk 0:00:45]}  Bxc1 {[%clk 0:01:58]} 20. axb5 {[%clk 0:00:45]}  Bxd2+ {[%clk 0:01:55]} 21. Kxd2 {[%clk 0:00:45]}  Ra2+ {[%clk 0:01:55]} 22. Ke3 {[%clk 0:00:41]}  Rc2 {[%clk 0:01:50]} 23. Bd6 {[%clk 0:00:38]}  Rxc3+ {[%clk 0:01:45]} 24. Kd2 {[%clk 0:00:34]}  Rb3 {[%clk 0:01:40]} 25. Bxc4 {[%clk 0:00:31]}  Rb2+ {[%clk 0:01:39]} 26. Kc3 {[%clk 0:00:31]}  Rxf2 {[%clk 0:01:38]} 27. b6 {[%clk 0:00:19]}  Kd7 {[%clk 0:01:36]} 28. Bc5 {[%clk 0:00:18]}  Ra8 {[%clk 0:01:31]} 29. Bb5+ {[%clk 0:00:17]}  Kc8 {[%clk 0:01:30]} 30. Rc1 {[%clk 0:00:15]}  Raa2 {[%clk 0:01:28]} 31. d5 {[%clk 0:00:14]}  e3 {[%clk 0:01:17]} 32. Bxe3 {[%clk 0:00:13]}  Rfc2+ {[%clk 0:01:10]} 33. Rxc2 {[%clk 0:00:11]}  Rxc2+ {[%clk 0:01:11]} 34. Kb3 {[%clk 0:00:11]}  exd5 {[%clk 0:01:10]} 35. Bd4 {[%clk 0:00:11]}  f6 {[%clk 0:01:09]} 36. h4 {[%clk 0:00:10]}  Rg2 {[%clk 0:01:07]} 37. g5 {[%clk 0:00:09]}  hxg5 {[%clk 0:01:06]} 38. hxg5 {[%clk 0:00:07]}  Rxg5 {[%clk 0:01:05]} 39. Kb4 {[%clk 0:00:08]}  Be4 {[%clk 0:00:55]} 40. Kc5 {[%clk 0:00:07]}  f5 {[%clk 0:00:55]} 41. Kd6 {[%clk 0:00:07]}  Rg6+ {[%clk 0:00:55]} 42. Ke7 {[%clk 0:00:06]}  Kb8 {[%clk 0:00:34]} 43. Be5+ {[%clk 0:00:05]}  Ka8 {[%clk 0:00:33]} 44. Bc7 {[%clk 0:00:05]}  Rf6 {[%clk 0:00:30]} 45. Be5 {[%clk 0:00:00]}  Rxb6 {[%clk 0:00:27]} 0-1


[Site "https://www.chess.com"]